Cogmind - Beta 9.6 @@@ ROGUE MODE // 2020.06.03 @ 23:59:05 Player: Pitt Result: Destroyed by G-34 Mercenary with Small Laser Performance ------------- Evolutions (0) 0 Regions Visited (1) 200 Robots Destroyed (12) 60 Value Destroyed (135) 135 Prototype IDs (0) 0 Alien Tech Used (0) 0 Bonus (0) 0 TOTAL SCORE: 395 Bonus ------- None Cogmind --------- Core Integrity 0/250 Matter 300/300 Energy 100/100 System Corruption 2% Temperature Cool (15) Movement Core (300) Ox5 Location -10/Materials Parts ------- > --- POWER (1) -------- (None) > --- PROPULSION (2) --- (None) > --- UTILITY (2) ------ Medium Storage Unit Medium Storage Unit > --- WEAPON (2) ------- (None) > --- INVENTORY (12) --- Light Ion Engine Light Ion Engine Wheel Flight Unit Flight Unit Flight Unit Visual Processing Unit Sensor Array Signal Interpreter Improved Terrain Scanner Seismic Analyzer Mining Laser Peak State ------------ > --- POWER ------------ Ion Engine > --- PROPULSION ------- Aluminum Leg Aluminum Leg > --- UTILITY ---------- Small Storage Unit Improved Terrain Scanner > --- WEAPON ----------- EM Pulse Gun Medium Laser > --- INVENTORY -------- Light Ion Engine Light Ion Engine Wheel Compact Wheel Seismic Analyzer EM Pulse Gun [Rating: 8] Favorites ----------- Power Ion Engine Engine Ion Engine Propulsion Aluminum Leg Leg Aluminum Leg Utility Medium Storage Unit Device Improved Terrain Scanner Storage Medium Storage Unit Weapon Medium Laser Energy Gun Medium Laser Build | -11 -10 ------- Run | Scr Mat Slots Evolved . | . . Power . | . . Propulsion . | . . Utility . | . . Weapon . | . . Parts Attached 10 | 7 3 Power 2 | 1 1 Engine 2 | 1 1 Core . | . . Reactor . | . . Propulsion 2 | 2 . Treads . | . . Leg 2 | 2 . Wheel . | . . Hover . | . . Flight . | . . Utility 4 | 2 2 Device 1 | 1 . Storage 3 | 1 2 Processor . | . . Hackware . | . . Protection . | . . Artifact . | . . Weapon 2 | 2 . Energy Gun 2 | 2 . Energy Cannon . | . . Ballistic Gun . | . . Ballistic Cannon . | . . Launcher . | . . Special Weapon . | . . Impact Weapon . | . . Slashing Weapon . | . . Piercing Weapon . | . . Special Melee Weapon . | . . Unidentified Prototypes . | . . Parts Lost 5 | . 5 Power 1 | . 1 Propulsion 2 | . 2 Utility . | . . Weapon 2 | . 2 Highest Loss Streak 3 | . 3 Average Slot Usage (%) 82 | . 82 Engine 13 | . 13 Leg 19 | . 19 Device 3 | . 3 Storage 24 | . 24 Energy Gun 19 | . 19 Naked Turns . | . . Heaviest Build 25 | 14 25 Greatest Support 20 | 20 20 Greatest Overweight (x) 6 | . 6 Average Overweight (x) . | . 1 Largest Inventory Capacity 12 | 6 12 Average Capacity 9 | 5 10 Most Carried 12 | 6 12 Average Carried 8 | 4 10 Final Capacity 12 | 6 12 Final Carried 12 | 6 12 Class Distribution -------------------- 100% | Mutant Dominant Class ---------------- Mutant | -10/Materials Resources | -11 -10 ----------- Run | Scr Mat Matter Collected 298 | 270 28 Remotely . | . . Salvage Created 333 | 192 141 Parts 31 | 12 19 Haulers Intercepted . | . . Recyclers Shooed . | . . Parts Field Recycled . | . . Retrieved Matter . | . . Parts Self-Destructed . | . . Prevented . | . . Kills | -11 -10 ------- Run | Scr Mat Combat Hostiles Destroyed 4 | . 4 Guns 4 | . 4 Classes Destroyed 6 | 2 4 Builder 1 | . 1 Tunneler 4 | 4 . Recycler 1 | 1 . Watcher 2 | . 2 Swarmer 3 | . 3 Grunt 1 | . 1 Best Kill Streak 5 | 5 4 Combat Bots Only 3 | . 3 Max Kills in Single Turn 1 | 1 1 Gunslinging . | . . Exploded . | . . Melee . | . . Uniques/NPCs Destroyed . | . . Combat | -11 -10 -------- Run | Scr Mat Damage Taken 697 | . 697 Core 260 | . 260 Absorbed by Shields . | . . Core Remaining (%) 100 | 100 . Volleys Fired 36 | 13 23 Largest 2 | 2 2 Hottest 90 | 90 90 Shots Fired 63 | 26 37 Gun 63 | 26 37 Cannon . | . . Launcher . | . . Special . | . . Kinetic . | . . Thermal 36 | 13 23 Explosive . | . . Electromagnetic 27 | 13 14 Robot Hit Streak 11 | 9 11 Robot Miss Streak 3 | 3 3 Penetration Max . | . . Secondary Targets . | . . Shots Hit Robots 37 | 15 22 Core Hits 19 | 6 13 Critical Hits . | . . Critical Kills . | . . Critical Parts Destroyed . | . . Melee Attacks . | . . Impact . | . . Slashing . | . . Piercing . | . . Sneak Attacks . | . . Combat Hostiles . | . . Follow-up Attacks . | . . Damage Inflicted 589 | 205 384 Guns 473 | 171 302 Cannons . | . . Explosions 112 | 34 78 Melee . | . . Ramming 4 | . 4 Kinetic . | . . Thermal 340 | 72 268 Explosive . | . . Electromagnetic 245 | 133 112 Impact . | . . Slashing . | . . Piercing . | . . Highest Corruption 2 | . 2 Average Corruption 2 | . 2 Corruption Purged . | . . Overload Shots . | . . Overflow Damage . | . . Projectiles . | . . Explosions . | . . Melee . | . . Knockbacks . | . . Impact . | . . Kinetic . | . . Secondary . | . . Self-Inflicted Damage 1 | . 1 Shots . | . . Rammed 6 | . 6 Targets Rammed 6 | . 6 Kicked . | . . Crushed . | . . Highest Temperature 283 | 132 283 Average Temperature 97 | 48 126 Received Heat Transfer 339 | . 339 Siege Activations . | . . Robots Corrupted . | . . Combat Hostiles . | . . Parts Fried . | . . Impact Corruptions . | . . Robots Melted . | . . Combat Hostiles . | . . Parts Melted 1 | . 1 Heat Transferred 866 | 161 705 Parts Sabotaged . | . . Parts Stolen . | . . Parts Stripped . | . . Power Chain Reactions 2 | 1 1 Missiles Intercepted . | . . Alert | -11 -10 ------- Run | Scr Mat Peak Influence 120 | 25 120 Average Influence 61 | 9 89 Maximum Alert Level . | . . Low Security (%) 100 | 100 100 Level 1 . | . . Level 2 . | . . Level 3 . | . . Level 4 . | . . Level 5 . | . . High Security . | . . Max Security . | . . Squads Dispatched . | . . Investigation . | . . Extermination . | . . Reinforcement . | . . Assault . | . . Garrison . | . . Intercept . | . . Construction Impeded . | . . Haulers Reinforced . | . . Stealth | -11 -10 --------- Run | Scr Mat Distress Signals . | . . Communications Jammed . | . . Distress Signals . | . . Times Spotted 10 | . 10 Peak Tracking Total 3 | . 3 Tactical Retreats 1 | . 1 Traps | -11 -10 ------- Run | Scr Mat Traps Triggered . | . . Indirectly . | . . Trap Hack Attempts . | . . Triggered . | . . Disarmed . | . . Reprogrammed . | . . Reused . | . . Traps Extracted . | . . Installed . | . . Triggered . | . . Machines | -11 -10 ---------- Run | Scr Mat Machines Disabled . | . . Max in Single Turn . | . . Machines Sabotaged . | . . Garrisons Compromised . | . . Overloaded Fab Kills . | . . Fab Network Shutdowns . | . . Hacking | -11 -10 --------- Run | Scr Mat Machines Accessed 1 | . 1 Terminals 1 | . 1 Fabricators . | . . Repair Stations . | . . Recycling Units . | . . Scanalyzers . | . . Garrison Access . | . . Total Hacks 2 | . 2 Successful . | . . Failed 2 | . 2 Catastrophic . | . . Database Lockouts . | . . Manual . | . . Terminals 2 | . 2 Fabricators . | . . Repair Stations . | . . Recycling Units . | . . Scanalyzers . | . . Garrison Access . | . . Terminal Hacks . | . . Fabricator Hacks . | . . Repair Station Hacks . | . . Recycling Unit Hacks . | . . Scanalyzer . | . . Garrison Access Hacks . | . . Unauthorized Hacks . | . . Terminals . | . . Fabricators . | . . Repair Stations . | . . Recycling Units . | . . Scanalyzers . | . . Garrison Access . | . . Data Cores Recovered . | . . Used . | . . Hacking Detections 1 | . 1 Full Trace Events . | . . Feedback Events . | . . Feedback Blocked . | . . Robot Schematics Acquired . | . . Robots Built . | . . Matter . | . . Time . | . . Total Robot Build Rating . | . . Part Schematics Acquired . | . . Parts Built . | . . Matter . | . . Time . | . . Total Part Build Rating . | . . Parts Repaired . | . . Time . | . . Parts Recycled . | . . Recycled Matter . | . . Retrieved Matter . | . . Retrieved Components . | . . Parts Scanalyzed . | . . Part Schematics Acquired . | . . Parts Damaged . | . . Bothacking | -11 -10 ------------ Run | Scr Mat Used RIF Installer . | . . Robots Hacked . | . . Non-combat . | . . Combat . | . . Robot Hacks Applied . | . . Relay Couplers Released . | . . Robots Rewired . | . . Allies Hacked . | . . Hacks Repelled . | . . Allies | -11 -10 -------- Run | Scr Mat Total Allies . | . . Largest Group . | . . Highest-Rated Group . | . . Highest-Rated Ally . | . . Total Orders . | . . Ally Attacks . | . . Total Damage . | . . Kills . | . . Allies Corrupted . | . . Allies Melted . | . . Intel | -11 -10 ------- Run | Scr Mat Robot Analysis Total . | . . Derelict Logs Recovered . | . . Drone Launches . | . . Drone Recoveries . | . . Exploration | -11 -10 ------------- Run | Scr Mat Turns Passed 514 | 181 333 Spaces Moved 251 | 109 142 Core 11 | 10 1 Treads . | . . Legs 240 | 99 141 Wheels . | . . Hover . | . . Flight . | . . Fastest Speed 50 | 50 120 Average Speed 136 | 113 154 Slowest Speed 350 | 120 350 Overloaded Moves . | . . Propulsion Burnouts . | . . Robots Hopped . | . . Cave-ins Triggered . | . . Exploration Rate (%) 12 | 4 21 Regions Visited 1 Branch Regions . Pre-discovered Areas . | . . Known Exits Taken . | . . Unknown Exits Taken 1 | 1 . Scrap Searched . | . . Spaces Dug . | . . Terrain Destroyed 6 | 3 3 Melee . | . . Projectile . | . . AOE 6 | 3 3 Actions | -11 -10 --------- Run | Scr Mat Total 346 | 138 208 Wait 21 | . 21 Move 250 | 108 142 Hop . | . . Pick Up 18 | 9 9 Fast Attach 5 | 5 . Attach 2 | 2 . Detach . | . . Swap 3 | . 3 Drop 5 | 1 4 Fire 36 | 13 23 Melee . | . . Ram 6 | . 6 Kick . | . . Crush . | . . Escape Stasis . | . . Rewire . | . . Trap . | . . Miscellaneous . | . . Route ------- -11/Scrapyard -10/Materials History --------- Turn | Location | Event 12 | -11/Scrapyard | Discovered new exit (range 15) 182 | -11/Scrapyard | Entered Materials 315 | -10/Materials | Build established: Mutant 500 | -10/Materials | Core integrity fell below 50% 510 | -10/Materials | Core integrity fell below 20% 515 | -10/Materials | Destroyed by G-34 Mercenary with Small Laser Last Messages --------------- 00374_ Acquired Signal Interpreter. 00374_ K-01 Serf collects debris. 00376_ Acquired 8 matter. 00378_ K-01 Serf collects debris. 00380_ Dropped Flight Unit. 00380_ Acquired Sensor Array. 00381_ K-01 Serf collects debris. 00417_ K-01 Serf cleans the Material Processor. 00424_ K-01 Serf collects debris. 00428_ K-01 Serf cleans the Material Processor. 00491_ Med. Laser destroyed. 00493_ Aluminum Leg destroyed. 00497_ Slammed into G-47 Trooper. 00504_ Destabilizing: Core damaged (-7). 00505_ Lgt. Ion Engine destroyed. 00505_ K-01 Serf collects debris. 00508_ Slammed into G-47 Trooper. 00509_ K-01 Serf collects debris. 00511_ Slammed into G-47 Trooper. 00514_ Destabilizing: System corrupted (+2). Map ----- +----------------------------------------------------+ | ????????????+ """ # !#???????????????????? | | ?????#??????# """ # !#???????????????????? | | ????????????# """ + !!##???????????????????? | | ????????????# # ####????????????????????? | | ????????????# """ # ###########? ???????????? | | ????????????# """ # # | #?????????????? | | ????????????# """ # # | #?????????????? | | ????????????# # # #?????????????? | | ????????????########## #% #?????????????? | | ??????????? ?????##?## %+%[ #?????????????? | | ???? #####T### # #? ???????????? | | ???? # #?????????????? | | ???? ######### # #??#??????????? | | ??????????? ?????#???# ###########?????????????? | | ?????????????????????# k#???????????????????????? | | ???????????????????#?# #?????????? ????????????? | | ?????????????????????# #???????????????????????? | | ?????????????????????#a #???##?#????????????????? | | ?????????????? ??????#% #??? ??????????????????? | | ????????????????????## ##? """?????????????????? | | ?????????????######## %! # """"???#?????????????? | | ?????????????# %=# """"???#?????????????? | | ?????????????# = k """"?????????????????? | | ?????????????# # ???"?????????????????? | | ????########## #### g# ????????????????????? | | ????# # #??### @# ???????????????????? | | ????# """ # #????#%g%#! ??????????????????? | | ????# """"" # #????#%%%#?####?????????????????? | | ????# """"" # #????# #??????????????????????? | | ????# """"" + #????# #??????????????????????? | | ????# """ # #????# ?????????????????????? | | ????# #####????# ###????????????????????? | | ????# #????????#^^ #??????????????????????? | | ????# ! #????????# #??????????????????????? | | ????##########????????# #??????????????????????? | | ??????????????????????# #??????????????????????? | | ??????????????????????+ #??????????????????????? | | ??????????????????????# #??????????????????????? | | ??????????????????????# #??????????????????????? | | ??????????????????????# #??????????????????????? | | ??????????????????????# #??????????????????????? | | ??????????????????????# #??????????????????????? | | ??????????????????????? ???????????????????????? | | ?????????????????????????????????????????????????? | | ?????????????????????????????????????????????????? | | ?????????????????????????????????????????????????? | | ?????????????????????????????????????????????????? | | ?????????????????????????????????????????????????? | | ?????????????????????????????????????????????????? | | ?????????????????????????????????????????????????? | +----------------------------------------------------+ Best States ------------- Heat Dissipation 25 Energy Generation 10 Energy Capacity 250 Matter Stores 300 Matter Capacity 300 Sight Range 16 Terrain Scan Range 16 Terrain Scan Density 10 Evasion (%) 40 Item Schematics ----------------- None Robot Schematics ------------------ None Fabricated ------------ Nothing Alien Tech Used ----------------- None Achievements -------------- None Challenges ------------ None Game ------ Seed ProtonCoolingPurifier Manual? 0 Play Time 00:08:34 Cumulative 62.6 hours Start 2020.06.03 @ 23:53:48 End 2020.06.03 @ 23:59:05 Sessions 1 Manual Loads 0 Difficulty Rogue Special Mode None Game No. 110 Rogue 110 Adventurer 0 Explorer 0 Win Type - Total 0 Types 0/0/0/0/0/0/0 Lore% 42 Gallery% 49 Achievement% 31 Wizard Run 0 Options --------- ASCII 0 Keyboard 0 Movement Mouse Keybinds 0 Fullscreen 1 Font 12/Smallcaps Map View 83x54 Tactical HUD 1 Map Filters NONE Filters NONE Steam 1 RUN: 3ee5caae-4c68-40a1-9aa4-ae03ca2f2dec